bitfinex/quotes_SOLUSD_20250622
["timestamp","ask_amount","ask_price","bid_price","bid_amount"]
[1750612134558,18.92001843,130.56,130.52,18.92001843]
[1750612135060,18.92001843,130.57,130.52,18.92001843]
[1750612135437,18.92001843,130.57,130.53,18.92001843]
[1750612135752,19.64001843,130.57,130.53,18.92001843]
[1750612136538,18.92001843,130.56,130.52,18.92001843]
[1750612137058,19.64001843,130.56,130.52,18.92001843]
[1750612137260,18.92001843,130.53,130.47,13.7972]
[1750612137443,18.92001843,130.55,130.5,18.92001843]
[1750612137635,26.72,130.56,130.47,13.8272]
[1750612137953,18.92001843,130.55,130.5,18.92001843]
[1750612138156,19.64001843,130.55,130.5,18.92001843]
[1750612138832,18.92001843,130.54,130.5,18.92001843]
[1750612139138,18.92001843,130.55,130.5,18.92001843]
[1750612139356,18.92001843,130.55,130.51,18.92001843]
[1750612139662,19.64001843,130.56,130.51,18.92001843]
[1750612140138,19.64001843,130.56,130.48,37.56966729]
[1750612140566,19.64001843,130.56,130.51,18.92001843]
[1750612141357,19.64001843,130.55,130.5,18.92001843]
[1750612141738,18.92001843,130.53,130.47,13.7972]
[1750612142065,18.92001843,130.52,130.48,18.92001843]
[1750612142253,18.92001843,130.53,130.47,6.2772]
[1750612142558,18.92001843,130.52,130.48,18.92001843]
[1750612142761,18.92001843,130.54,130.5,18.92001843]
[1750612143137,19.64001843,130.54,130.5,18.92001843]
[1750612143641,0.72,130.54,130.5,18.92001843]
[1750612143956,18.92001843,130.53,130.47,6.2772]
[1750612144256,18.92001843,130.53,130.49,18.92001843]
[1750612144842,18.92001843,130.54,130.5,18.92001843]
[1750612145042,19.64001843,130.54,130.5,18.92001843]
[1750612145242,19.64001843,130.54,130.49,18.92001843]
[1750612146065,0.72,130.54,130.5,18.92001843]
[1750612146559,19.64001843,130.52,130.48,18.92001843]
[1750612146944,0.72,130.52,130.48,18.92001843]
[1750612147345,19.64001843,130.52,130.46,18.64964886]
[1750612147655,0.72,130.52,130.48,18.92001843]
[1750612147839,19.64001843,130.52,130.48,18.92001843]
[1750612148039,19.64001843,130.52,130.45,26.0]
[1750612148040,0.72,130.52,130.44,15.3507]
[1750612148236,18.92001843,130.45,130.41,159.60363114]
[1750612148440,18.92001843,130.44,130.41,159.60363114]
[1750612149641,19.64001843,130.45,130.41,159.60363114]
[1750612150053,18.92001843,130.44,130.41,159.60363114]
[1750612150258,19.64001843,130.44,130.41,159.60363114]
[1750612150453,18.92001843,130.43,130.41,159.60363114]
[1750612151266,19.64001843,130.44,130.41,159.60363114]
[1750612153470,18.92001843,130.43,130.41,159.60363114]
[1750612153796,7.17277551,130.47,130.41,159.60363114]
[1750612153797,25.31419339,130.42,130.41,159.60363114]
[1750612153977,6.6027,130.41,130.33,1.5182]
[1750612154151,18.92001843,130.36,130.31,18.92001843]
[1750612154349,18.92001843,130.35,130.31,18.92001843]
[1750612154574,18.92001843,130.35,130.3,177.91281957]
[1750612154747,0.72,130.38,130.3,177.91281957]
[1750612154946,18.92001843,130.35,130.3,177.91281957]
[1750612155475,26.0,130.37,130.3,177.91281957]
[1750612155675,18.92001843,130.35,130.3,177.91281957]
[1750612155971,18.92001843,130.36,130.3,162.87501938]
[1750612156171,18.92001843,130.35,130.3,177.91281957]
[1750612156358,18.92001843,130.34,130.3,177.91281957]
[1750612156969,19.64001843,130.35,130.3,177.91281957]
[1750612157148,19.64001843,130.34,130.3,158.99280114]
[1750612157563,18.92001843,130.35,130.31,18.92001843]
[1750612157963,32.66,130.36,130.31,18.92001843]
[1750612158172,18.92001843,130.35,130.31,18.92001843]
[1750612159079,32.66,130.36,130.32,18.92001843]
[1750612159256,51.58001843,130.36,130.31,18.92001843]
[1750612159577,52.30001843,130.36,130.31,18.92001843]
[1750612159777,18.92001843,130.35,130.31,18.92001843]
[1750612160272,19.64001843,130.35,130.3,181.69388514]
[1750612160467,18.92001843,130.34,130.3,181.69388514]
[1750612160654,19.64001843,130.34,130.3,158.99280114]
[1750612161866,18.92001843,130.33,130.3,158.99280114]
[1750612162183,18.92001843,130.33,130.29,33.5]
[1750612162184,0.72,130.33,130.29,18.92001843]
[1750612162385,33.34,130.36,130.31,18.92001843]
[1750612162584,33.34,130.36,130.29,18.92001843]
[1750612162585,18.92001843,130.33,130.29,18.92001843]
[1750612162894,18.92001843,130.33,130.28,44.92001843]
[1750612163075,32.66,130.36,130.28,26.0]
[1750612163076,19.60001843,130.32,130.28,26.0]
[1750612163254,0.68,130.32,130.28,18.92001843]
[1750612163466,19.60001843,130.29,130.24,7.5]
[1750612163673,18.92001843,130.27,130.22,18.92001843]
[1750612163864,18.92001843,130.26,130.22,18.92001843]
[1750612164173,0.68,130.27,130.2,18.92001843]
[1750612164378,18.92001843,130.28,130.24,18.92001843]
[1750612164566,25.12931843,130.29,130.24,18.92001843]
[1750612164873,18.92001843,130.28,130.24,18.92001843]
[1750612165052,6.8893,130.29,130.24,18.92001843]
[1750612165258,25.80931843,130.29,130.24,18.92001843]
[1750612165677,155.6,130.31,130.25,18.92001843]
[1750612165678,148.1,130.31,130.25,18.92001843]
[1750612165858,18.92001843,130.31,130.26,18.92001843]
[1750612166274,18.92001843,130.29,130.25,18.92001843]
[1750612166663,18.92001843,130.27,130.24,26.0]
[1750612166863,18.92001843,130.27,130.23,44.92001843]
[1750612167073,18.92001843,130.28,130.24,18.92001843]
[1750612168159,18.92001843,130.26,130.22,18.92001843]
[1750612168456,18.92001843,130.26,130.22,26.0]
[1750612168856,18.92001843,130.26,130.21,18.92001843]
[1750612169070,0.68,130.28,130.21,18.92001843]
[1750612169271,19.60001843,130.26,130.21,18.92001843]
[1750612169466,18.92001843,130.24,130.2,3.79635809]
[1750612169688,18.92001843,130.24,130.19,160.95482279]
[1750612169854,18.92001843,130.24,130.2,18.92001843]
[1750612170360,18.92001843,130.25,130.21,18.92001843]
[1750612170673,18.92001843,130.25,130.2,18.92001843]
[1750612170867,18.92001843,130.24,130.2,18.92001843]
[1750612171464,18.92001843,130.24,130.19,116.03480436]
[1750612171674,18.92001843,130.24,130.2,18.92001843]
[1750612171980,18.92001843,130.25,130.21,18.92001843]
[1750612172768,52.28001843,130.27,130.22,18.92001843]
[1750612173092,51.60001843,130.27,130.22,18.92001843]
[1750612173388,51.60001843,130.27,130.23,18.92001843]
[1750612174273,32.68,130.27,130.24,18.92001843]
[1750612174874,51.60001843,130.27,130.23,18.92001843]
[1750612175083,18.92001843,130.27,130.23,18.92001843]
[1750612175284,18.92001843,130.28,130.23,18.92001843]
[1750612175799,18.92001843,130.25,130.2,3.78175479]
[1750612175985,0.68,130.27,130.2,18.92001843]
[1750612175986,18.92001843,130.24,130.2,18.92001843]
[1750612176474,18.92001843,130.25,130.2,18.92001843]
[1750612176881,33.38,130.27,130.2,18.92001843]
[1750612177064,18.92001843,130.24,130.2,18.92001843]
[1750612177470,33.38,130.27,130.21,18.92001843]
[1750612177778,18.92001843,130.28,130.24,18.92001843]
[1750612177980,18.92001843,130.27,130.23,18.92001843]
[1750612178372,18.92001843,130.28,130.23,18.92001843]
[1750612178572,19.60001843,130.3,130.25,18.92001843]
[1750612178782,18.92001843,130.4,130.24,1.6571]
[1750612178783,18.92001843,130.29,130.24,1.6571]
[1750612178983,162.4893,130.33,130.25,18.92001843]
[1750612179172,18.92001843,130.31,130.26,18.92001843]
[1750612179579,19.60001843,130.31,130.26,18.92001843]
[1750612180197,162.4893,130.33,130.29,18.92001843]
[1750612180495,19.60001843,130.3,130.24,18.92001843]
[1750612180690,13.7093,130.33,130.23,18.92001843]
[1750612180691,18.92001843,130.28,130.23,18.92001843]
[1750612180871,18.92001843,130.27,130.23,18.92001843]
[1750612181070,19.60001843,130.28,130.23,18.92001843]
[1750612181318,0.68,130.28,130.24,18.92001843]
[1750612181499,18.92001843,130.27,130.23,18.92001843]
[1750612181706,32.78,130.3,130.21,20.57711843]
[1750612181707,18.92001843,130.25,130.21,20.57711843]
[1750612181906,18.92001843,130.25,130.21,1.6571]
[1750612182107,18.92001843,130.28,130.23,18.92001843]
[1750612182306,0.68,130.29,130.24,18.92001843]
[1750612182614,18.92001843,130.27,130.21,1.6571]
[1750612182775,18.92001843,130.27,130.22,18.92001843]
[1750612183110,18.92001843,130.26,130.22,18.92001843]
[1750612183709,18.92001843,130.26,130.21,18.92001843]
[1750612184082,18.92001843,130.25,130.21,18.92001843]
[1750612184283,18.92001843,130.23,130.19,105.53564444]
[1750612184701,8.3905,130.26,130.19,124.45566287]
[1750612184906,19.60001843,130.25,130.21,18.92001843]
[1750612185213,19.60001843,130.25,130.2,18.92001843]
[1750612185374,19.60001843,130.25,130.19,105.53564444]
[1750612185682,7.7105,130.26,130.22,18.92001843]
[1750612185683,25.01571843,130.26,130.22,18.92001843]
[1750612187001,18.92001843,130.25,130.21,18.92001843]
[1750612187312,33.5,130.28,130.22,18.92001843]
[1750612187499,18.92001843,130.25,130.21,18.92001843]
[1750612187712,18.92001843,130.25,130.2,18.92001843]
[1750612188110,33.5,130.28,130.23,18.92001843]
[1750612188441,52.42001843,130.28,130.23,18.92001843]
[1750612189026,51.01571843,130.29,130.24,18.92001843]
[1750612189316,51.01571843,130.29,130.2,26.69]
[1750612189317,0.68,130.31,130.26,18.92001843]
[1750612189516,18.92001843,130.3,130.26,18.92001843]
[1750612189695,18.92001843,130.29,130.25,18.92001843]
[1750612190214,18.92001843,130.28,130.24,18.92001843]
[1750612190418,0.68,130.31,130.24,18.92001843]
[1750612190607,18.92001843,130.3,130.25,18.92001843]
[1750612190814,18.92001843,130.3,130.26,18.92001843]
[1750612191205,18.92001843,130.29,130.24,18.92001843]
[1750612191610,18.92001843,130.29,130.25,18.92001843]
[1750612191808,18.92001843,130.29,130.24,18.92001843]
[1750612192204,18.92001843,130.29,130.25,18.92001843]
[1750612192410,0.68,130.31,130.25,18.92001843]
[1750612192601,18.92001843,130.3,130.25,18.92001843]
[1750612192801,18.92001843,130.3,130.26,18.92001843]
[1750612193216,213.0357,130.32,130.27,18.92001843]
[1750612193217,231.95571843,130.32,130.27,18.92001843]
[1750612194299,199.11571843,130.32,130.27,18.92001843]
[1750612194505,193.02001843,130.32,130.27,18.92001843]
[1750612194719,193.74001843,130.32,130.27,18.92001843]
[1750612194917,18.92001843,130.31,130.27,18.92001843]
[1750612195098,174.82,130.32,130.27,18.92001843]
[1750612195298,193.74001843,130.32,130.28,18.92001843]
[1750612195501,148.1,130.32,130.28,18.92001843]
[1750612195707,9.1148,130.33,130.28,18.92001843]
[1750612195708,54.03481843,130.33,130.28,18.92001843]
[1750612195906,18.92001843,130.32,130.25,2.3497]
[1750612196099,18.92001843,130.32,130.28,18.92001843]
[1750612196406,27.14001843,130.33,130.28,18.92001843]
[1750612197204,27.14001843,130.33,130.29,18.92001843]
[1750612197403,19.64001843,130.33,130.29,18.92001843]
[1750612197602,0.72,130.33,130.29,18.92001843]
[1750612197813,19.64001843,130.33,130.29,18.92001843]
[1750612198521,32.8,130.34,130.29,19.64001843]
[1750612198720,18.92001843,130.34,130.3,18.92001843]
[1750612198923,45.64001843,130.35,130.31,18.92001843]
[1750612199122,25.3601857,130.34,130.29,18.92001843]
[1750612199326,19.64001843,130.34,130.29,18.92001843]
[1750612199513,0.72,130.34,130.29,18.92001843]
[1750612199711,19.64001843,130.34,130.29,18.92001843]
[1750612200308,0.72,130.34,130.3,18.92001843]
[1750612200511,19.64001843,130.34,130.3,18.92001843]
[1750612200812,19.64001843,130.34,130.29,18.92001843]
[1750612201016,0.72,130.29,130.25,18.92001843]
[1750612201214,18.92001843,130.27,130.23,18.92001843]
[1750612201403,6.9966,130.35,130.26,38.28966729]
[1750612201601,24.64338668,130.34,130.26,19.36964886]
[1750612201809,5.72336825,130.33,130.29,18.92001843]
[1750612202004,18.92001843,130.32,130.26,0.72]
[1750612202213,18.92001843,130.3,130.26,18.92001843]
[1750612202505,18.92001843,130.27,130.2,8.28]
[1750612202730,18.92001843,130.25,130.2,26.48001843]
[1750612202927,18.92001843,130.24,130.2,26.48001843]
[1750612203101,26.72,130.26,130.19,98.03564444]
[1750612203308,18.92001843,130.21,130.19,98.03564444]
[1750612203710,18.92001843,130.2,130.19,98.03564444]
[1750612204029,78.50001843,130.2,130.12,18.92001843]
[1750612204226,18.92001843,130.16,130.12,18.92001843]
[1750612204417,18.92001843,130.16,130.1,27.73324886]
[1750612204418,18.92001843,130.16,130.1,9.0836]
[1750612204623,18.92001843,130.16,130.11,44.92001843]
[1750612204928,18.92001843,130.17,130.11,26.72]
[1750612205142,18.92001843,130.21,130.16,18.92001843]
[1750612205445,18.92001843,130.21,130.14,26.0]
[1750612205446,18.92001843,130.21,130.17,18.92001843]
[1750612205625,18.92001843,130.19,130.15,18.92001843]
[1750612205938,18.92001843,130.2,130.16,18.92001843]
[1750612206818,19.64001843,130.22,130.18,18.92001843]
[1750612207016,18.92001843,130.22,130.18,18.92001843]
[1750612207607,18.92001843,130.22,130.15,18.64964886]
[1750612207907,18.92001843,130.22,130.18,18.92001843]
[1750612208430,18.92001843,130.21,130.17,18.92001843]
[1750612208600,77.82001843,130.23,130.18,18.92001843]
[1750612208801,19.64001843,130.25,130.21,18.92001843]
[1750612209029,19.64001843,130.25,130.18,18.64964886]
[1750612209226,19.64001843,130.25,130.21,18.92001843]
[1750612209429,19.64001843,130.25,130.2,18.92001843]
[1750612209818,51.82001843,130.27,130.22,18.92001843]
[1750612210118,32.2005,130.28,130.22,18.92001843]
[1750612210318,18.92001843,130.26,130.22,44.92001843]
[1750612210833,18.92001843,130.26,130.22,26.0]
[1750612211037,18.92001843,130.26,130.22,44.92001843]
[1750612211204,18.92001843,130.27,130.22,44.92001843]
[1750612211621,18.92001843,130.26,130.22,44.92001843]
[1750612212132,6.9205,130.28,130.22,26.0]
[1750612212331,18.92001843,130.26,130.22,44.92001843]
[1750612212725,18.92001843,130.27,130.23,18.92001843]
[1750612213030,18.92001843,130.26,130.22,44.92001843]
[1750612213237,18.92001843,130.26,130.22,26.0]
[1750612213419,18.92001843,130.25,130.22,26.0]
[1750612213734,18.92001843,130.26,130.22,26.0]
[1750612214639,18.92001843,130.25,130.22,26.0]
[1750612214930,18.92001843,130.31,130.27,26.0]
[1750612215138,25.28791843,130.32,130.28,18.92001843]
[1750612215514,25.28791843,130.32,130.27,26.0]
[1750612215716,18.92001843,130.31,130.27,26.0]
[1750612216014,18.92001843,130.3,130.27,26.0]
[1750612216530,18.92001843,130.3,130.26,18.92001843]
[1750612216916,6.3679,130.32,130.26,18.92001843]
[1750612217123,7.0879,130.32,130.28,18.92001843]
[1750612217328,18.92001843,130.31,130.26,18.92001843]
[1750612217509,18.92001843,130.3,130.26,18.92001843]
[1750612217916,7.0879,130.32,130.27,18.92001843]
[1750612218226,18.92001843,130.32,130.28,18.92001843]
[1750612218806,18.92001843,130.32,130.27,18.92001843]
[1750612219026,32.88,130.34,130.27,18.92001843]
[1750612219237,18.92001843,130.32,130.27,18.92001843]
[1750612219441,18.92001843,130.32,130.25,0.72]
[1750612219739,18.92001843,130.32,130.28,18.92001843]
[1750612219913,32.88,130.34,130.24,64.28966729]
[1750612219914,18.92001843,130.31,130.27,18.92001843]
[1750612221844,18.92001843,130.31,130.26,18.92001843]
[1750612222145,26.72,130.32,130.25,18.92001843]
[1750612222444,18.92001843,130.3,130.26,18.92001843]
[1750612222645,18.92001843,130.31,130.26,18.92001843]
[1750612223364,26.0,130.32,130.26,18.92001843]
[1750612223514,18.92001843,130.31,130.26,18.92001843]
[1750612223722,18.92001843,130.3,130.26,18.92001843]
[1750612223936,18.92001843,130.3,130.25,18.92001843]
[1750612224736,18.92001843,130.29,130.25,18.92001843]
[1750612225128,18.92001843,130.3,130.25,18.92001843]
[1750612225468,18.92001843,130.28,130.24,18.92001843]
[1750612225843,0.71,130.29,130.24,18.92001843]
[1750612226051,148.1,130.31,130.23,0.34]
[1750612226255,148.1,130.31,130.29,18.92001843]
[1750612226430,18.92001843,130.31,130.25,19.35964886]
[1750612226758,26.71,130.33,130.28,18.92001843]
[1750612226956,148.1,130.34,130.27,18.64964886]
[1750612227127,167.02001843,130.34,130.3,18.92001843]
[1750612227446,18.92001843,130.33,130.29,18.92001843]
[1750612227654,167.02001843,130.34,130.3,18.92001843]
[1750612227859,40.4,130.36,130.31,18.92001843]
[1750612228150,174.81,130.37,130.32,18.92001843]
[1750612228327,167.02001843,130.37,130.33,18.92001843]
[1750612228733,18.92001843,130.38,130.33,18.92001843]
[1750612228927,18.92001843,130.39,130.34,18.92001843]
[1750612229138,18.92001843,130.39,130.35,18.92001843]
[1750612229338,19.63001843,130.44,130.38,18.92001843]
[1750612229528,5.71072432,130.47,130.36,18.64964886]
[1750612229752,18.92001843,130.45,130.41,18.92001843]
[1750612230047,58.92,130.47,130.41,18.92001843]
[1750612230555,58.92,130.47,130.38,18.64964886]
[1750612231054,18.92001843,130.45,130.4,18.92001843]
[1750612231260,7.0504,130.48,130.36,18.64964886]
[1750612231438,0.71,130.47,130.37,0.71]
[1750612231756,18.92001843,130.42,130.38,18.92001843]
[1750612231940,58.92,130.46,130.4,18.92001843]
[1750612232251,18.92001843,130.45,130.41,18.92001843]
[1750612232554,9.1762,130.5,130.44,18.92001843]
[1750612232555,7.6,130.5,130.44,18.92001843]
[1750612232757,18.92001843,130.52,130.48,18.92001843]
[1750612232963,0.71,130.55,130.49,18.92001843]
[1750612233256,7.6,130.6,130.53,18.92001843]
[1750612233444,148.1,130.63,130.54,26.0]
[1750612233653,148.1,130.63,130.55,18.92001843]
[1750612233869,35.4131228,130.64,130.56,18.92001843]
[1750612234034,18.92001843,130.61,130.57,18.92001843]
[1750612234233,2.3931228,130.64,130.57,27.48911584]
[1750612234433,35.4131228,130.64,130.57,27.48911584]
[1750612234676,35.4131228,130.64,130.59,27.48911584]
[1750612234677,1.6831228,130.64,130.59,27.48911584]
[1750612234971,0.71,130.76,130.59,27.48911584]
[1750612234972,10.17669856,130.77,130.64,19.35964886]
[1750612235174,10.17669856,130.77,130.67,26.0]
[1750612235457,27.48911584,130.76,130.7,27.48911584]
[1750612235658,27.48911584,130.76,130.68,18.64964886]
[1750612235837,26.71,130.77,130.71,27.48911584]
[1750612236035,26.71,130.77,130.72,27.48911584]
[1750612236254,0.71,130.81,130.68,46.8487647]
[1750612236555,9.7196,130.84,130.68,46.8487647]
[1750612236556,7.07414044,130.84,130.75,27.48911584]
[1750612236857,150.4931228,130.9,130.8,0.71]
[1750612237048,27.48911584,130.88,130.8,26.0]
[1750612237252,1.6831228,130.9,130.84,27.48911584]
[1750612237571,27.48911584,130.89,130.81,0.71]
[1750612237764,1.6831228,130.9,130.81,0.71]
[1750612238062,0.71,130.88,130.76,18.64964886]
[1750612238227,10.0,130.89,130.76,18.64964886]
[1750612238432,0.71,130.87,130.78,18.64964886]
[1750612238634,27.48911584,130.81,130.74,8.5]
[1750612238847,26.0,130.83,130.75,27.48911584]
[1750612239031,0.71,130.79,130.73,18.64964886]
[1750612239244,0.71,130.79,130.7,27.48911584]
[1750612239460,0.71,130.79,130.67,8.5]
[1750612239634,0.71,130.79,130.65,27.01951074]
[1750612239635,6.4766,130.82,130.69,0.71]
[1750612239834,9.21,130.83,130.72,26.71]
[1750612240071,0.71,130.83,130.72,26.71]
[1750612240260,18.64964886,130.87,130.76,26.71]
[1750612240457,27.48911584,130.84,130.77,26.0]
[1750612240660,27.48911584,130.86,130.8,18.64964886]
[1750612240840,8.94,130.89,130.8,46.1387647]
[1750612240841,27.48911584,130.85,130.8,46.1387647]
[1750612241042,8.94,130.89,130.77,18.64964886]
[1750612241043,26.0,130.86,130.77,18.64964886]
[1750612241251,26.0,130.86,130.69,10.0]
[1750612241252,27.48911584,130.8,130.75,46.1387647]
[1750612241575,27.48911584,130.8,130.68,0.71]
[1750612241576,0.71,130.8,130.68,0.71]
[1750612241787,27.48911584,130.73,130.68,28.19911584]
[1750612241947,0.71,130.8,130.68,0.71]
[1750612242279,35.36,130.82,130.63,9.36]
[1750612242280,26.0,130.74,130.64,27.48911584]
[1750612242460,27.48911584,130.66,130.59,6.8876]
[1750612242770,27.48911584,130.66,130.61,27.48911584]
[1750612242979,27.48911584,130.67,130.63,27.48911584]
[1750612243146,0.71,130.72,130.63,27.48911584]
[1750612243563,27.48911584,130.69,130.62,26.0]
[1750612243764,27.48911584,130.69,130.63,18.64964886]
[1750612243967,27.48911584,130.69,130.65,27.48911584]
[1750612244175,27.48911584,130.69,130.64,27.48911584]
[1750612244377,35.36,130.74,130.65,27.48911584]
[1750612244756,35.36,130.74,130.66,27.48911584]
[1750612244970,27.48911584,130.73,130.68,27.48911584]
[1750612245179,9.36,130.74,130.65,44.64964886]
[1750612245359,27.48911584,130.73,130.69,27.48911584]
[1750612245547,9.36,130.74,130.67,27.48911584]
[1750612245746,27.48911584,130.72,130.67,27.48911584]
[1750612246178,27.48911584,130.73,130.65,44.64964886]
[1750612246479,27.48911584,130.73,130.69,27.48911584]
[1750612247057,10.37880762,130.77,130.72,27.48911584]
[1750612247258,37.86792346,130.77,130.72,27.48911584]
[1750612247464,10.37880762,130.77,130.73,27.48911584]
[1750612247661,10.37880762,130.77,130.7,18.64964886]
[1750612247863,10.37880762,130.77,130.72,18.64964886]
[1750612248064,10.37880762,130.77,130.75,27.48911584]
[1750612248272,10.37880762,130.77,130.72,18.64964886]
[1750612248466,10.37880762,130.77,130.76,27.48911584]
[1750612248665,37.86792346,130.77,130.69,0.71]
[1750612248882,10.37880762,130.77,130.69,0.71]
[1750612249179,27.48911584,130.76,130.72,27.48911584]
[1750612249360,27.48911584,130.74,130.69,0.71]
[1750612249562,10.37880762,130.77,130.69,27.48911584]
[1750612249763,27.48911584,130.73,130.68,27.48911584]
[1750612249961,27.48911584,130.74,130.67,26.0]
[1750612250271,27.48911584,130.7,130.65,27.48911584]
[1750612250580,0.71,130.76,130.68,27.48911584]
[1750612250756,27.48911584,130.72,130.67,27.48911584]
[1750612250961,27.48911584,130.7,130.64,19.35964886]
[1750612251285,27.48911584,130.68,130.64,27.48911584]
[1750612251963,27.48911584,130.71,130.66,27.48911584]
[1750612252156,27.48911584,130.71,130.67,27.48911584]
[1750612252361,0.71,130.74,130.67,27.48911584]
[1750612252561,27.48911584,130.74,130.69,27.48911584]
[1750612252771,27.48911584,130.75,130.71,27.48911584]
[1750612252969,27.48911584,130.76,130.71,27.48911584]
[1750612253285,27.48911584,130.75,130.7,27.48911584]
[1750612253466,27.48911584,130.72,130.67,9.34]
[1750612253665,37.86792346,130.77,130.68,27.48911584]
[1750612253872,27.48911584,130.73,130.68,27.48911584]
[1750612254174,37.86792346,130.77,130.67,9.34]
[1750612254175,27.48911584,130.69,130.67,9.34]
[1750612254376,26.71,130.75,130.67,9.34]
[1750612254377,27.48911584,130.68,130.67,9.34]
[1750612254579,27.48911584,130.69,130.67,9.34]
[1750612254766,27.48911584,130.68,130.63,27.48911584]
[1750612254967,27.48911584,130.66,130.61,59.02]
[1750612255171,27.48911584,130.66,130.62,27.48911584]
[1750612255395,27.48911584,130.65,130.61,86.50911584]
[1750612255592,27.48911584,130.64,130.59,27.48911584]
[1750612256082,0.71,130.68,130.57,35.34]
[1750612256273,27.48911584,130.64,130.57,35.34]
[1750612256475,27.48911584,130.64,130.59,27.48911584]
[1750612256662,27.48911584,130.64,130.57,35.34]
[1750612256663,27.48911584,130.61,130.57,9.34]
[1750612256869,27.48911584,130.59,130.57,9.34]
[1750612257087,0.71,130.64,130.57,36.82911584]
[1750612257256,0.71,130.64,130.57,9.34]
[1750612257257,27.48911584,130.61,130.57,9.34]
[1750612257461,27.48911584,130.61,130.57,36.82911584]
[1750612257662,27.48911584,130.61,130.57,9.34]
[1750612257888,27.48911584,130.6,130.57,9.34]
[1750612258988,0.71,130.64,130.57,9.34]
[1750612259289,27.48911584,130.61,130.57,9.34]
[1750612259598,0.71,130.64,130.58,27.48911584]
[1750612259761,0.71,130.64,130.57,9.34]
[1750612259762,27.48911584,130.61,130.57,9.34]
[1750612259962,27.48911584,130.6,130.57,9.34]
[1750612260161,0.71,130.64,130.57,9.34]
[1750612260390,27.48911584,130.6,130.57,9.34]
[1750612260696,27.48911584,130.62,130.57,36.82911584]
[1750612260865,27.48911584,130.6,130.57,9.34]
[1750612261367,0.71,130.64,130.57,9.34]
[1750612261570,27.48911584,130.63,130.57,9.34]
[1750612261806,0.71,130.64,130.57,9.34]
[1750612261807,0.71,130.68,130.6,27.48911584]
[1750612262006,27.48911584,130.68,130.6,18.64964886]
[1750612262299,6.7793,130.72,130.67,27.48911584]
[1750612262300,27.48911584,130.72,130.67,27.48911584]
[1750612262464,11.08880762,130.77,130.7,27.48911584]
[1750612262675,11.08880762,130.77,130.66,18.64964886]
[1750612262676,27.48911584,130.76,130.72,27.48911584]
[1750612262877,10.37880762,130.77,130.73,27.48911584]
[1750612263068,10.37880762,130.77,130.76,27.48911584]
[1750612263499,37.86792346,130.77,130.72,9.34]
[1750612263699,27.48911584,130.74,130.69,26.0]
[1750612263995,0.71,130.74,130.68,9.34]
[1750612264190,0.71,130.74,130.61,0.74]
[1750612264191,27.48911584,130.69,130.62,27.98964886]
[1750612264388,27.48911584,130.65,130.62,9.34]
[1750612264606,27.48911584,130.68,130.63,27.48911584]
[1750612264811,27.48911584,130.67,130.62,36.82911584]
[1750612265100,27.48911584,130.68,130.63,27.48911584]
[1750612265472,26.0,130.74,130.65,27.48911584]
[1750612265678,47.20792346,130.77,130.68,27.48911584]
[1750612265679,27.48911584,130.72,130.68,27.48911584]
[1750612265886,27.48911584,130.71,130.66,27.48911584]
[1750612266088,0.71,130.75,130.68,27.48911584]
[1750612266290,0.71,130.75,130.65,18.64964886]
[1750612266497,10.37880762,130.77,130.71,27.48911584]
[1750612266698,10.37880762,130.77,130.66,0.74]
[1750612266699,27.48911584,130.76,130.68,18.64964886]
[1750612267004,27.48911584,130.75,130.68,18.64964886]
[1750612267500,27.48911584,130.75,130.7,27.48911584]
[1750612268172,26.71,130.79,130.7,27.48911584]
[1750612268374,27.48911584,130.74,130.7,27.48911584]
[1750612268577,27.48911584,130.72,130.68,27.48911584]
[1750612268978,0.71,130.79,130.71,27.48911584]
[1750612269196,27.48911584,130.8,130.76,27.48911584]
[1750612269593,33.3347,130.83,130.74,27.48911584]
[1750612269786,27.48911584,130.77,130.72,9.34]
[1750612269983,27.48911584,130.73,130.64,59.74]
[1750612270325,26.0,130.76,130.69,27.48911584]
[1750612270473,26.0,130.76,130.67,18.64964886]
[1750612270474,27.48911584,130.72,130.67,18.64964886]
[1750612270679,27.48911584,130.7,130.65,27.48911584]
[1750612271087,27.48911584,130.69,130.64,36.82911584]
[1750612271299,27.48911584,130.66,130.64,9.34]
[1750612271475,0.71,130.71,130.64,9.34]
[1750612271675,27.48911584,130.67,130.64,9.34]
[1750612271978,27.48911584,130.66,130.64,9.34]
[1750612272198,27.48911584,130.66,130.62,27.48911584]
[1750612272387,27.48911584,130.65,130.57,0.74]
[1750612272580,27.48911584,130.64,130.57,0.74]